bitfinex/quotes_ETHUSD_20241104
["timestamp","ask_amount","ask_price","bid_price","bid_amount"]
[1730689660469,4.02552,2484.2,2483.7,0.8083]
[1730689660670,4.02572,2484.1,2483.8,0.09939036]
[1730689660866,4.02552,2484.2,2483.8,0.09939036]
[1730689661094,4.02552,2484.2,2483.7,4.83451]
[1730689661299,4.02552,2484.2,2483.9,0.0992881]
[1730689661504,4.02519,2484.4,2483.8,4.12546036]
[1730689661711,8.05045,2484.4,2484.0,0.09918586]
[1730689661909,8.05045,2484.4,2483.9,0.09927514]
[1730689662112,4.02531,2484.3,2484.1,0.09907065]
[1730689662614,4.02496,2484.5,2484.0,0.8083]
[1730689662781,4.02496,2484.5,2484.2,0.09896842]
[1730689662782,4.0253,2484.3,2484.2,0.09896842]
[1730689662970,4.0253,2484.3,2484.1,0.09907065]
[1730689663176,4.02512,2484.4,2484.2,0.09896842]
[1730689663575,4.02512,2484.4,2484.0,0.8083]
[1730689663787,4.02521,2484.4,2484.0,0.8083]
[1730689664001,4.02521,2484.4,2484.1,0.09907065]
[1730689665308,4.02529,2484.3,2484.1,0.09907065]
[1730689665483,4.81454,2484.2,2484.1,0.09907065]
[1730689665668,0.7891,2484.2,2483.6,0.8083]
[1730689665874,4.0261,2483.8,2483.7,0.09943212]
[1730689666521,4.02594,2483.9,2483.7,0.09943212]
[1730689666702,4.02582,2484.0,2483.7,0.09943212]
[1730689666911,4.507312,2484.0,2483.7,0.09943212]
[1730689667210,4.02602,2483.9,2483.7,0.09943212]
[1730689667512,4.02608,2483.8,2483.7,0.09943212]
[1730689667723,4.81518,2483.8,2483.7,0.09943212]
[1730689667880,4.02672,2483.5,2483.1,0.8083]
[1730689668078,8.0534,2483.5,2483.2,0.09991762]
[1730689668393,4.02668,2483.5,2483.2,0.09991762]
[1730689668592,4.02682,2483.4,2483.2,0.09991762]
[1730689669131,8.05296,2483.6,2483.2,0.09991762]
[1730689670022,4.02659,2483.5,2483.2,0.09991762]
[1730689670239,4.02641,2483.6,2483.2,0.09991762]
[1730689670515,4.02665,2483.5,2483.2,0.09991762]
[1730689671024,4.02641,2483.6,2483.2,0.09991762]
[1730689671025,4.02673,2483.4,2483.2,0.09991762]
[1730689671820,4.02661,2483.5,2483.2,0.09991762]
[1730689672798,4.02676,2483.4,2483.2,0.09991762]
[1730689673284,4.02689,2483.3,2483.2,0.09991762]
[1730689673693,4.02689,2483.3,2482.9,4.83584]
[1730689673925,4.02689,2483.3,2483.2,0.09999111]
[1730689674219,4.02689,2483.3,2482.9,4.83584]
[1730689674391,4.02689,2483.3,2483.2,0.09999111]
[1730689674600,4.02689,2483.3,2482.9,4.83584]
[1730689674787,4.02689,2483.3,2483.2,0.09999111]
[1730689675212,4.02689,2483.3,2482.9,4.83584]
[1730689675427,4.02689,2483.3,2483.2,0.09999111]
[1730689676017,4.02689,2483.3,2482.9,0.8083]
[1730689676231,4.02689,2483.3,2483.2,0.09999111]
[1730689676590,4.02733,2483.1,2482.9,0.8083]
[1730689676900,4.02712,2483.2,2482.9,0.8083]
[1730689676901,8.05429,2483.2,2482.9,0.8083]
[1730689677345,4.0269,2483.3,2482.9,0.8083]
[1730689680032,4.02725,2483.1,2482.7,3.7907366]
[1730689680335,4.02725,2483.1,2482.7,4.5990366]
[1730689680641,4.02716,2483.2,2482.7,8.6268766]
[1730689680806,8.05431,2483.2,2482.7,8.6268766]
[1730689681009,4.02715,2483.2,2482.7,8.6268766]
[1730689681320,4.02692,2483.3,2482.8,4.0277]
[1730689681631,4.02708,2483.2,2482.7,8.6268966]
[1730689682404,4.02722,2483.1,2482.7,4.5990366]
[1730689682815,4.02722,2483.1,2482.7,0.8083]
[1730689682816,4.911554,2483.1,2482.7,0.8083]
[1730689683017,4.02747,2483.0,2482.7,0.8083]
[1730689683447,4.02701,2483.3,2482.7,4.5990366]
[1730689683649,4.02707,2483.2,2482.7,8.6268166]
[1730689683950,4.02707,2483.2,2482.7,12.6545966]
[1730689684305,4.02707,2483.2,2482.7,8.6268166]
[1730689684628,4.0271,2483.2,2482.7,8.6268166]
[1730689685146,4.02705,2483.3,2482.7,8.6268166]
[1730689685352,4.02705,2483.3,2482.7,8.6267766]
[1730689685525,4.02701,2483.3,2482.7,4.5990366]
[1730689685727,4.02697,2483.3,2482.8,4.02763]
[1730689685922,4.02721,2483.2,2482.7,4.5990366]
[1730689686140,4.02721,2483.2,2482.7,8.6268766]
[1730689686314,4.02723,2483.1,2482.7,4.5990366]
[1730689686815,4.02694,2483.3,2482.7,4.5990366]
[1730689687014,4.02694,2483.3,2482.8,4.02763]
[1730689687557,8.63158,2483.5,2483.0,7.8180466]
[1730689687730,8.63158,2483.5,2483.1,0.8083]
[1730689688240,4.605,2483.5,2483.2,4.02706]
[1730689688411,4.605,2483.5,2483.4,0.8172]
[1730689688615,4.605,2483.5,2483.4,4.84393]
[1730689688912,4.555,2483.5,2483.4,4.94385052]
[1730689689623,4.555,2483.5,2483.4,5.49385052]
[1730689691052,4.555,2483.5,2483.4,0.09992052]
[1730689691625,4.555,2483.5,2483.4,4.12665052]
[1730689693361,4.555,2483.5,2483.4,0.09992052]
[1730689694326,5.491898,2483.5,2483.1,0.8172]
[1730689694528,4.555,2483.5,2483.4,0.09627173]
[1730689694834,4.555,2483.5,2483.1,0.8172]
[1730689694835,8.58157,2483.5,2483.1,0.8172]
[1730689695032,8.58157,2483.5,2483.4,0.09627173]
[1730689695234,8.58157,2483.5,2483.1,0.8172]
[1730689695660,8.58157,2483.5,2483.2,0.09647634]
[1730689695963,4.555,2483.5,2483.2,0.09647634]
[1730689697067,4.555,2483.5,2483.2,4.12350634]
[1730689697924,4.555,2483.5,2483.4,3.7907366]
[1730689698124,4.555,2483.5,2483.4,9.26519896]
[1730689698358,4.555,2483.5,2483.4,9.57817907]
[1730689699570,4.555,2483.5,2483.4,9.58817907]
[1730689699741,3.7151551,2483.5,2483.4,11.3227239]
[1730689699929,4.02457,2484.8,2484.3,4.84238]
[1730689699930,4.81227,2484.8,2484.3,4.84238]
[1730689700132,4.908219,2484.8,2484.3,4.6079366]
[1730689700336,4.908219,2484.8,2484.4,0.09524922]
[1730689700337,4.02483,2484.6,2484.4,0.09524922]
[1730689700538,4.02475,2484.7,2484.4,0.09524922]
[1730689700864,4.02475,2484.7,2484.5,0.09514702]
[1730689701071,4.02475,2484.7,2484.3,0.8172]
[1730689701277,4.02475,2484.7,2484.4,0.09524922]
[1730689701978,0.883649,2484.8,2484.4,0.09524922]
[1730689702153,4.02439,2484.9,2484.4,8.14537922]
[1730689702354,4.02439,2484.9,2484.4,4.12027922]
[1730689703077,4.81194,2485.0,2484.5,4.02487]
[1730689703443,4.81194,2485.0,2484.6,0.09492242]
[1730689703778,4.81194,2485.0,2484.6,3.88565902]
[1730689704081,5.695542,2485.0,2484.6,3.88565902]
[1730689704279,0.883602,2485.0,2484.6,7.91043902]
[1730689704458,4.02423,2485.0,2484.7,0.8136]
[1730689704658,4.02423,2485.0,2484.8,0.09471805]
[1730689705174,0.7605,2485.4,2484.8,4.11917805]
[1730689705347,0.7605,2485.4,2484.9,3.7907366]
[1730689705547,4.02344,2485.5,2485.0,4.02406]
[1730689705886,4.02344,2485.5,2485.2,3.7907366]
[1730689706202,4.904145,2485.5,2485.3,0.09420727]
[1730689706349,0.880705,2485.5,2485.3,0.09420727]
[1730689706981,4.7836,2485.7,2485.3,0.09420727]
[1730689707585,4.02325,2485.6,2485.3,0.09420727]
[1730689707745,0.01,2486.3,2485.3,0.09420727]
[1730689707746,4.02279,2485.9,2485.3,0.09420727]
[1730689707946,4.02303,2485.7,2485.3,0.09420727]
[1730689708346,4.78329,2485.9,2485.5,3.7907366]
[1730689708547,4.78329,2485.9,2485.5,4.6043366]
[1730689708548,0.478329,2485.8,2485.5,4.6043366]
[1730689708803,4.78293,2486.1,2485.6,0.09365404]
[1730689708950,4.02254,2486.0,2485.6,0.09365404]
[1730689709148,4.78293,2486.1,2485.6,0.09365404]
[1730689709149,8.80537,2486.1,2485.6,0.09365404]
[1730689709648,4.02254,2486.0,2485.6,0.09365404]
[1730689709847,0.7605,2486.1,2485.6,0.09365404]
[1730689710049,4.02214,2486.3,2485.8,3.7907366]
[1730689710050,4.02213,2486.3,2485.8,3.7907366]
[1730689710321,4.500393,2486.3,2485.8,3.7907366]
[1730689710448,4.500393,2486.3,2485.9,0.09320403]
[1730689710449,4.02252,2486.0,2485.9,0.09320403]
[1730689710648,4.02252,2486.0,2485.1,0.8136]
[1730689710850,4.02358,2485.4,2484.9,4.6043366]
[1730689711077,4.02358,2485.4,2484.9,8.6286366]
[1730689711502,4.02366,2485.3,2485.0,0.09071254]
[1730689711658,4.02358,2485.4,2485.0,0.09071254]
[1730689712059,4.02327,2485.6,2485.0,0.09071254]
[1730689712352,0.402327,2485.5,2485.1,4.02398]
[1730689712572,4.02301,2485.7,2485.2,3.7907366]
[1730689712787,4.02301,2485.7,2485.2,3.88124483]
[1730689713085,0.7605,2485.9,2485.2,3.88124483]
[1730689713086,4.0233,2485.6,2485.2,0.09050823]
[1730689713286,4.02353,2485.4,2484.9,8.6285966]
[1730689713478,4.02353,2485.4,2485.0,0.09071254]
[1730689713682,1.16283,2485.5,2485.0,0.09071254]
[1730689713999,4.02448,2484.8,2484.3,4.6043366]
[1730689714297,0.7605,2484.9,2484.4,4.02501]
[1730689714454,4.02423,2485.0,2484.4,4.02501]
[1730689714655,4.905089,2485.0,2484.4,4.02501]
[1730689714995,4.02447,2484.8,2484.3,4.6043366]
[1730689715297,8.929329,2485.0,2484.4,4.0251]
[1730689715452,8.929329,2485.0,2484.3,4.6043366]
[1730689715453,4.02433,2484.9,2484.3,4.6043366]
[1730689715796,4.5150789,2484.8,2484.3,4.6043366]
[1730689717080,8.04782,2485.2,2484.4,4.57509]
[1730689717307,8.04782,2485.2,2484.7,0.8136]
[1730689717308,4.0239,2485.2,2484.7,0.8136]
[1730689717673,8.04787,2485.2,2484.7,0.8136]
[1730689717871,4.0239,2485.2,2484.7,0.8136]
[1730689718759,8.04782,2485.2,2484.8,0.09091687]
[1730689718974,0.880832,2485.1,2484.8,0.09091687]
[1730689719503,0.7605,2485.3,2484.8,4.11532687]
[1730689719681,4.0236,2485.4,2484.8,4.11532687]
[1730689719918,0.40233,2485.5,2484.8,4.11532687]
[1730689719919,0.40233,2485.5,2484.9,3.7907366]
[1730689720072,4.42582,2485.5,2485.0,0.09071254]
[1730689720905,0.40233,2485.5,2485.0,0.09071254]
[1730689721072,4.02367,2485.3,2485.0,0.09071254]
[1730689721289,4.02367,2485.3,2484.8,0.55]
[1730689721485,4.02357,2485.4,2485.1,0.09061038]
[1730689721691,4.02357,2485.4,2484.8,4.02439]
[1730689721878,4.02357,2485.4,2485.2,0.09050823]
[1730689722078,4.02357,2485.4,2484.7,0.8136]
[1730689722079,4.02382,2485.2,2484.7,0.8136]
[1730689722272,0.402357,2485.3,2484.7,4.83821]
[1730689722713,4.426017,2485.3,2484.7,4.83821]
[1730689724773,4.426017,2485.3,2484.7,0.8136]
[1730689724979,4.426017,2485.3,2484.4,0.8157]
[1730689724980,4.02439,2484.9,2484.4,0.8157]
[1730689725211,4.02447,2484.8,2484.4,0.8157]
[1730689725572,4.02439,2484.9,2484.4,0.8157]
[1730689726432,4.02457,2484.8,2484.4,0.8157]
[1730689726603,4.02439,2484.9,2484.4,0.8157]
[1730689726794,4.829238,2484.9,2484.4,0.8157]
[1730689726992,4.85247,2484.8,2484.2,4.84113]
[1730689727215,4.02466,2484.7,2484.2,4.84113]
[1730689727617,4.02466,2484.7,2484.2,8.86648]
[1730689727929,4.02512,2484.4,2483.8,4.02595]
[1730689728334,4.85292,2484.6,2483.8,4.02595]
[1730689728501,4.02523,2484.4,2483.8,4.02595]
[1730689728708,4.02523,2484.4,2483.9,4.02589]
[1730689728909,4.02497,2484.5,2483.9,4.02589]
[1730689729136,4.912757,2484.5,2483.9,4.02589]
[1730689730215,4.02531,2484.3,2483.8,4.02595]
[1730689730536,4.02556,2484.2,2483.7,4.02624]
[1730689731333,4.02521,2484.4,2483.7,4.02613]
[1730689731698,4.02521,2484.4,2483.8,4.026]
[1730689731927,5.0017987,2484.4,2483.8,4.026]
[1730689732909,4.02564,2484.1,2483.6,0.8157]
[1730689733630,0.828,2484.2,2483.6,0.8157]
[1730689733812,4.02605,2483.9,2483.7,0.09242314]
[1730689734017,4.02605,2483.9,2483.3,4.8425]
[1730689734018,0.828,2483.8,2483.3,0.8157]
[1730689734214,4.02653,2483.6,2483.1,0.8157]
[1730689734539,4.511953,2483.6,2483.1,0.8157]
[1730689734750,4.02657,2483.5,2483.1,0.8157]
[1730689734907,4.511953,2483.6,2483.1,0.8157]
[1730689735250,4.02657,2483.5,2483.1,0.8157]
[1730689735415,4.511953,2483.6,2483.1,0.8157]
[1730689735739,0.485453,2483.6,2483.2,4.02705]
[1730689735907,4.85417,2483.8,2483.2,4.02705]
[1730689736106,8.88034,2483.8,2483.2,4.02705]
[1730689736309,4.02625,2483.7,2483.2,4.02705]
[1730689736556,4.02641,2483.6,2483.1,0.8157]
[1730689737040,4.02641,2483.6,2483.1,4.84291]
[1730689737746,4.85417,2483.8,2483.2,4.02703]
[1730689737960,5.742175,2483.8,2483.2,4.02703]
[1730689738445,4.02627,2483.7,2483.2,4.02703]
[1730689740062,1.716005,2483.8,2483.2,8.05395]
[1730689740208,4.85386,2484.0,2483.4,4.02672]
[1730689740550,4.85386,2484.0,2483.5,0.8157]
[1730689740906,8.87971,2484.0,2483.5,0.8157]
[1730689741854,4.02612,2483.8,2483.3,0.8157]
[1730689742148,4.02596,2483.9,2482.8,4.02762]
[1730689742149,0.828,2483.9,2483.0,4.84296]
[1730689742347,4.02658,2483.5,2483.0,4.84296]
[1730689742847,4.02658,2483.5,2483.0,0.8157]
[1730689743210,4.02658,2483.5,2483.0,4.84308]
[1730689743416,8.05327,2483.5,2483.0,0.8157]
[1730689743618,4.831907,2483.5,2483.0,0.8157]
[1730689744233,4.02675,2483.4,2483.0,0.8157]
[1730689744411,4.02693,2483.3,2482.8,8.6340766]
[1730689744613,4.02701,2483.3,2482.8,4.6064366]
[1730689744927,4.02709,2483.2,2482.8,4.6064366]
[1730689745125,4.02701,2483.3,2482.8,0.8157]
[1730689745453,4.02716,2483.2,2482.8,0.8157]
[1730689745615,4.9957127,2483.3,2482.8,4.8434]
[1730689746052,4.9957127,2483.3,2482.8,0.8157]
[1730689746212,4.9957127,2483.3,2482.8,4.8433]
[1730689746840,4.9957127,2483.3,2482.8,0.8157]
[1730689747035,0.49957127,2483.2,2482.8,0.8157]
[1730689747560,4.52663127,2483.2,2482.8,0.8157]
[1730689748255,0.49957127,2483.2,2482.8,0.8157]
[1730689748425,4.52668127,2483.2,2482.8,0.8157]
[1730689748749,0.49957127,2483.2,2482.9,0.09357021]
[1730689749336,4.02701,2483.3,2482.9,0.09357021]
[1730689749337,5.28221813,2483.1,2482.9,0.09357021]
[1730689749740,5.28221813,2483.1,2482.6,4.8502]
[1730689749916,5.28221813,2483.1,2483.0,0.09346788]
[1730689750449,5.28221813,2483.1,2482.6,4.8502]
[1730689750616,0.8022,2483.1,2483.0,0.09346788]
[1730689750947,4.82942,2483.1,2482.6,4.8502]
[1730689751340,4.82942,2483.1,2482.7,0.0937749]
[1730689751849,0.8022,2483.1,2482.7,0.0937749]
[1730689752049,4.027,2483.3,2482.7,4.1215549]
[1730689752421,4.02709,2483.2,2482.7,4.1215549]
[1730689752832,4.027,2483.3,2482.7,4.1215549]
[1730689753023,4.02718,2483.2,2482.7,0.0937749]
[1730689753393,4.02717,2483.2,2482.7,0.0937749]
[1730689753537,4.912786,2483.2,2482.7,0.0937749]
[1730689754051,4.02726,2483.1,2482.7,0.0937749]
[1730689757319,4.02747,2483.0,2482.7,0.0937749]
[1730689757769,8.05495,2483.0,2482.7,0.0937749]
[1730689758067,4.82967,2483.0,2482.7,0.0937749]
[1730689758367,4.02722,2483.1,2482.6,4.028]
[1730689758520,5.0014396,2483.1,2482.8,0.0940527]
[1730689758726,5.0014396,2483.1,2482.7,0.09415505]
[1730689759069,5.0014396,2483.1,2482.8,0.0940527]
[1730689759355,5.0014396,2483.1,2482.5,4.02818]
[1730689759560,5.0014396,2483.1,2482.9,0.09395037]
[1730689759739,0.98307996,2483.0,2482.5,4.02811]
[1730689760069,4.02722,2483.1,2482.5,4.02811]
[1730689760358,4.02722,2483.1,2482.6,0.0942574]
[1730689760549,4.82936,2483.2,2482.6,0.0942574]
[1730689760868,4.02739,2483.0,2482.6,0.0942574]
[1730689761028,4.02739,2483.0,2482.4,4.85054]
[1730689761224,8.537819,2483.0,2482.7,0.09415505]
[1730689761424,4.510349,2483.0,2482.4,4.85054]
[1730689761641,4.510349,2483.0,2482.8,0.0940527]
[1730689761855,4.510349,2483.0,2482.5,4.02819]
[1730689762028,4.510349,2483.0,2482.9,0.09395037]
[1730689762234,4.510349,2483.0,2482.5,4.02819]
[1730689762487,4.510349,2483.0,2482.9,0.09395037]
[1730689762760,4.510349,2483.0,2482.5,4.02819]
[1730689762924,4.510349,2483.0,2482.9,0.09395037]
[1730689763127,4.510349,2483.0,2482.5,4.02819]
[1730689763357,4.510349,2483.0,2482.9,0.09395037]
[1730689763567,4.510349,2483.0,2482.5,4.02819]
[1730689763851,4.02739,2483.0,2482.9,0.09395037]
[1730689764163,0.8022,2483.2,2482.5,4.02819]
[1730689764164,0.8022,2483.2,2482.5,4.02809]
[1730689764359,0.8022,2483.2,2482.2,3.8513299]
[1730689764360,0.8022,2483.2,2482.9,0.09395037]
[1730689764560,4.02732,2483.1,2482.8,0.8164]
[1730689764779,4.02732,2483.1,2483.0,0.09384804]
[1730689764926,4.02738,2483.0,2482.9,0.09395037]
[1730689765122,4.02738,2483.0,2482.5,0.8164]
[1730689766748,4.0274,2483.0,2482.5,0.8164]
[1730689767626,4.0274,2483.0,2482.5,4.84451]
[1730689774467,4.02755,2482.9,2482.5,0.8164]
[1730689776281,0.80549,2482.9,2482.2,0.0605933]
[1730689776451,4.02798,2482.7,2482.3,0.8164]
[1730689776639,0.772,2482.4,2482.2,0.0605933]
[1730689776837,4.02827,2482.5,2482.2,0.0605933]
[1730689777151,4.02827,2482.5,2482.2,0.35885114]
[1730689777677,4.02827,2482.5,2482.2,0.0605933]
[1730689778474,4.80004,2482.6,2482.2,0.0605933]
[1730689778681,4.0282,2482.5,2482.3,0.0914497]
[1730689778881,4.02835,2482.4,2482.2,0.0605933]
[1730689779237,4.02852,2482.3,2482.2,0.0605933]
[1730689779865,4.0282,2482.5,2482.2,0.0605933]
[1730689780184,4.02852,2482.3,2482.2,0.0605933]
[1730689780739,4.81972,2482.3,2482.2,0.0605933]
[1730689783258,4.02852,2482.3,2482.2,0.0605933]
[1730689784406,4.02846,2482.4,2482.2,0.0605933]
[1730689784548,4.02819,2482.6,2482.2,0.0605933]
[1730689784749,4.02819,2482.5,2482.2,0.0605933]
[1730689785452,4.02838,2482.4,2482.2,0.0605933]
[1730689785649,4.02852,2482.3,2482.2,0.0605933]
[1730689786679,4.81972,2482.3,2482.2,0.0605933]
[1730689786862,5.70453,2482.3,2482.2,0.0605933]
[1730689788816,4.81972,2482.3,2482.2,0.0605933]
[1730689793708,4.81972,2482.3,2482.2,0.15240885]
[1730689805051,11.6204566,2482.3,2482.2,0.15240885]
[1730689805205,11.6204566,2482.3,2482.2,0.0605933]
[1730689806456,11.6304566,2482.3,2482.2,0.0605933]
[1730689806752,13.74634026,2482.3,2482.2,0.0605933]
[1730689807241,13.74634026,2482.3,2481.0,4.0911033]
[1730689807242,4.03038,2481.2,2481.0,0.0605933]
[1730689807920,8.06083,2481.2,2481.0,0.0605933]
[1730689808050,4.03038,2481.2,2481.0,0.0605933]
[1730689808691,4.03038,2481.2,2481.1,0.09296787]
[1730689809296,4.03015,2481.3,2481.1,0.09296787]
[1730689810095,4.03016,2481.3,2481.1,0.09296787]
[1730689810462,4.0301,2481.4,2481.1,0.09296787]
[1730689810662,4.03025,2481.3,2481.1,0.09296787]
[1730689811804,4.0303,2481.2,2481.1,0.09296787]
[1730689812013,0.7912,2481.5,2481.1,0.09296787]
[1730689812014,4.03007,2481.4,2481.1,0.09296787]
[1730689812323,4.0293,2481.9,2481.3,4.03002]
[1730689812476,4.0293,2481.9,2481.4,4.8202]
[1730689812789,4.0293,2481.9,2481.4,4.91309226]
[1730689813387,4.02936,2481.8,2481.4,0.88319226]
[1730689813588,4.0293,2481.9,2481.4,4.91309226]
[1730689814089,4.02929,2481.9,2481.4,4.91309226]
[1730689815216,4.02928,2481.9,2481.4,4.91309226]
[1730689815742,4.02896,2482.1,2481.5,4.02973]
[1730689815918,4.02896,2482.1,2481.6,4.02963]
[1730689816244,4.02903,2482.0,2481.7,0.7903]
[1730689816448,2.35078366,2482.3,2481.7,0.88288493]
[1730689816742,8.05787,2482.1,2481.7,0.88288493]
[1730689816942,4.02893,2482.1,2481.7,0.88288493]
[1730689817257,4.02864,2482.3,2481.7,4.91228493]
[1730689817546,4.02864,2482.3,2481.8,4.02932]
[1730689817965,4.02864,2482.3,2481.9,0.09238008]
[1730689818265,4.02864,2482.3,2482.0,0.7903]
[1730689818465,4.02864,2482.3,2482.0,0.88257767]
[1730689818645,4.02812,2482.6,2482.1,4.02882]
[1730689818830,4.02821,2482.5,2482.1,0.09217527]
[1730689819033,4.02854,2482.3,2482.1,0.09217527]
[1730689819220,4.02846,2482.4,2482.1,0.09217527]
[1730689819927,4.02845,2482.4,2482.1,0.09217527]
[1730689820446,8.0569,2482.4,2482.1,0.09217527]
[1730689820644,4.02845,2482.4,2482.1,0.09217527]
[1730689823752,4.95251,2482.6,2482.1,0.09217527]
[1730689823953,4.02813,2482.6,2482.1,4.12099527]
[1730689824693,4.02751,2483.0,2482.2,8.5751166]
[1730689824861,4.02751,2483.0,2482.3,4.02847]
[1730689824862,4.02781,2482.8,2482.3,4.02847]
[1730689825064,4.02781,2482.8,2482.3,4.12026182]
[1730689825264,4.02748,2483.0,2482.6,0.7558]
[1730689825467,4.02723,2483.1,2482.6,4.7837]
[1730689825668,4.0274,2483.0,2482.7,0.0914525]
[1730689826058,4.0273,2483.1,2482.7,0.0914525]
[1730689826257,4.02742,2483.0,2482.7,0.0914525]
[1730689829359,4.0276,2482.9,2482.7,0.0914525]
[1730689829777,8.860369,2483.0,2482.7,0.0914525]
[1730689829967,4.832879,2483.0,2482.7,0.0914525]
[1730689830180,4.02756,2482.9,2482.7,0.0914525]
[1730689830393,4.832879,2483.0,2482.7,0.0914525]
[1730689830915,4.02742,2483.0,2482.7,0.0914525]
[1730689831678,4.0269,2483.3,2482.9,0.7558]
[1730689832086,4.02674,2483.4,2482.9,0.7558]
[1730689832087,4.02652,2483.6,2483.0,0.13247097]
[1730689832286,4.02652,2483.6,2483.1,0.7558]
[1730689832609,4.02659,2483.5,2483.1,0.88816485]
[1730689832789,4.02683,2483.4,2483.1,0.88816485]
[1730689833184,4.01883,2483.4,2483.1,0.88816485]
[1730689834178,4.84239,2483.7,2483.1,4.91531485]
[1730689834378,4.02649,2483.6,2483.1,4.91527485]
[1730689835393,4.02649,2483.6,2483.1,0.88816485]
[1730689835593,4.0267,2483.5,2483.1,0.88816485]
[1730689835799,4.02685,2483.4,2483.1,0.88816485]
[1730689837623,4.02637,2483.7,2483.1,4.91530485]
[1730689838302,4.02658,2483.5,2483.1,0.88816485]
[1730689839413,4.02681,2483.4,2483.1,0.88816485]
[1730689839741,4.832149,2483.4,2483.1,0.88816485]
[1730689839951,4.02705,2483.3,2483.1,0.13236485]
[1730689840118,4.02746,2483.0,2482.8,0.7879]
[1730689840322,4.02746,2483.0,2482.6,0.7879]
[1730689840526,4.02754,2482.9,2482.6,0.7879]
[1730689841108,4.02746,2483.0,2482.6,0.7879]
[1730689842526,4.02757,2482.9,2482.6,0.7879]
[1730689843651,4.02746,2483.0,2482.6,0.7879]
[1730689845135,4.02755,2482.9,2482.6,0.7879]
[1730689845353,4.02746,2483.0,2482.6,0.7879]
[1730689845823,8.055,2483.0,2482.6,0.7879]
[1730689846555,4.02746,2483.0,2482.6,0.7879]
[1730689847272,4.02777,2482.8,2482.6,0.7879]
[1730689847820,4.02755,2482.9,2482.6,0.7879]
[1730689852776,8.05499,2483.0,2482.6,0.7879]
[1730689852987,4.02773,2482.8,2482.6,0.7879]
[1730689853195,4.02787,2482.7,2482.2,0.7879]
[1730689853487,4.02771,2482.8,2482.3,4.02848]
[1730689853687,4.02771,2482.8,2482.3,4.16148362]
[1730689854087,0.480215,2482.9,2482.3,0.13300362]
[1730689854391,4.0279,2482.7,2482.3,0.13300362]
[1730689854986,4.0279,2482.7,2482.4,0.13292082]
[1730689855162,0.883024,2482.6,2482.4,0.13292082]
[1730689855358,4.911114,2482.6,2482.2,0.7879]
[1730689855562,4.911114,2482.6,2482.5,0.13282528]
[1730689855790,4.02809,2482.6,2482.2,0.7879]
[1730689855964,4.02809,2482.6,2482.5,0.1328444]
[1730689856162,4.02809,2482.6,2482.2,0.7879]
[1730689856362,4.02809,2482.6,2482.5,0.13284228]
[1730689856568,4.02809,2482.6,2482.2,0.7879]
[1730689856781,4.02809,2482.6,2482.5,0.13284228]
[1730689856964,4.02809,2482.6,2482.2,0.7879]
[1730689857165,0.7746,2483.0,2482.5,4.16101228]
[1730689857355,0.7746,2483.0,2482.6,0.7879]
[1730689857356,4.02746,2483.0,2482.6,0.7879]
[1730689857552,4.02755,2482.9,2482.6,0.92067435]
[1730689857975,4.02771,2482.8,2482.6,0.92067435]
[1730689858397,4.02756,2482.9,2482.6,0.92067435]
[1730689858601,4.02746,2483.0,2482.6,0.92067435]
[1730689858801,4.02757,2482.9,2482.6,0.92067435]
[1730689859312,0.7746,2483.2,2482.6,0.92067435]
[1730689859313,4.80179,2483.2,2482.6,0.92067435]
[1730689859515,4.02722,2483.1,2482.6,0.92067435]
[1730689859671,4.02722,2483.1,2482.6,4.94856435]
[1730689859672,4.02725,2483.1,2482.6,4.94856435]
[1730689860621,4.02722,2483.1,2482.6,4.94870435]
[1730689860777,4.0275,2483.0,2482.6,0.92067435]
[1730689860979,4.02675,2483.4,2482.6,0.92067435]
[1730689860980,4.02684,2483.4,2482.8,4.02761]
[1730689861290,3.0,2483.4,2482.9,0.13241343]
[1730689861503,4.02699,2483.3,2482.9,0.13241343]
[1730689861692,4.02713,2483.2,2482.9,0.13241343]
[1730689862677,4.02699,2483.3,2482.9,0.13241343]
[1730689862879,4.02738,2483.0,2482.9,0.13241343]
[1730689863185,4.0281,2482.6,2482.3,0.7879]
[1730689863385,4.02822,2482.5,2482.3,0.7879]
[1730689863821,4.0281,2482.6,2482.3,0.7879]
[1730689864609,0.402738,2482.9,2482.3,0.7879]
[1730689864808,4.02798,2482.7,2482.3,0.7879]
[1730689865014,8.05555,2482.8,2482.3,0.7879]
[1730689865185,4.0278,2482.8,2482.3,0.7879]
[1730689865505,4.02789,2482.7,2482.3,0.7879]
[1730689865881,4.80211,2483.0,2482.3,0.7879]
[1730689866086,4.02764,2482.9,2482.4,4.02831]
[1730689866602,4.02771,2482.8,2482.3,4.81628]
[1730689867421,0.7746,2482.7,2481.9,3.7907366]
[1730689867593,4.02832,2482.5,2481.9,4.02908]
[1730689867801,4.02836,2482.4,2481.9,4.02908]
[1730689868236,8.0568,2482.4,2481.9,4.02908]
[1730689868398,4.02836,2482.4,2481.9,4.02908]
[1730689868709,8.0568,2482.4,2482.0,0.12019951]
[1730689869236,4.02836,2482.4,2482.0,0.12019951]
[1730689869436,8.05683,2482.4,2482.0,0.12019951]
[1730689869602,4.02852,2482.3,2482.0,0.12019951]
[1730689869931,4.02852,2482.3,2481.8,4.02933]
[1730689870103,4.02852,2482.3,2482.1,0.12009543]
[1730689870305,4.02852,2482.3,2481.8,4.02933]
[1730689870635,4.02852,2482.3,2482.2,0.11999136]
[1730689870798,4.02852,2482.3,2481.8,4.02933]
[1730689870993,4.02852,2482.3,2482.2,0.11999136]
[1730689871334,4.02872,2482.2,2481.7,4.81739]
[1730689871834,4.02872,2482.2,2481.7,0.7879]
[1730689872225,4.02872,2482.2,2481.7,1.0866707]
[1730689872746,5.608108,2482.3,2481.7,0.7879]
[1730689872900,4.02868,2482.2,2481.7,4.81739]
[1730689873305,4.02868,2482.2,2481.7,0.7879]
[1730689873635,4.02868,2482.2,2481.7,4.8173]
[1730689874324,8.0575,2482.2,2481.7,0.7879]